bitfinex-derivatives/quotes_SOLF0:USTF0_20250716
["timestamp","ask_amount","ask_price","bid_price","bid_amount"]
[1752675467831,5.9874,166.98,166.93,5.9889]
[1752675468027,8.73490347,167.0,166.9,8.73490347]
[1752675468530,5.9881,166.96,166.91,5.9897]
[1752675468923,5.9889,166.94,166.87,702.72]
[1752675469126,8.73490347,166.96,166.87,702.72]
[1752675469629,8.73490347,166.94,166.87,517.68]
[1752675470132,8.73490347,166.98,166.87,517.68]
[1752675470330,8.73490347,166.96,166.87,526.41490347]
[1752675470632,11.9709,167.04,166.87,517.68]
[1752675470934,8.73490347,166.96,166.87,517.68]
[1752675472134,8.73490347,166.96,166.87,526.41490347]
[1752675472431,14.72300347,166.96,166.91,5.9896]
[1752675472930,8.73490347,166.96,166.92,5.9891]
[1752675473130,5.9876,166.97,166.92,5.9891]
[1752675474129,5.988,166.96,166.91,5.9896]
[1752675474840,5.9884,166.95,166.9,5.99]
[1752675475327,5.9884,166.95,166.89,184.94]
[1752675475827,5.9884,166.95,166.87,526.41490347]
[1752675476031,5.9884,166.95,166.88,184.94]
[1752675476230,14.72300347,166.96,166.88,184.94]
[1752675476431,8.73490347,166.99,166.89,193.67490347]
[1752675476831,8.73490347,167.01,166.89,184.94]
[1752675477031,8.73490347,167.01,166.91,8.73490347]
[1752675477336,5.9867,167.0,166.91,8.73490347]
[1752675477533,8.73490347,167.01,166.91,8.73490347]
[1752675478033,8.73490347,167.03,166.93,8.73490347]
[1752675478935,8.73490347,167.05,166.93,8.73490347]
[1752675479227,8.73490347,167.05,166.99,5.9866]
[1752675479631,318.60783784,167.07,167.0,5.9864]
[1752675479632,327.34274131,167.07,167.0,5.9864]
[1752675480033,8.73490347,167.05,166.96,184.9]
[1752675480236,5.9855,167.03,166.96,184.9]
[1752675480431,8.73490347,167.05,166.96,184.9]
[1752675480630,8.73490347,167.05,166.98,5.9871]
[1752675480934,8.73490347,167.05,166.96,184.9]
[1752675481434,5.9853,167.04,166.96,184.9]
[1752675482233,8.73490347,167.06,167.0,5.9863]
[1752675482837,5.9848,167.05,167.0,5.9863]
[1752675483036,8.73490347,167.06,167.0,5.9863]
[1752675483431,8.73490347,167.06,166.99,5.9867]
[1752675483833,8.73490347,167.04,166.94,5.00068711]
[1752675484041,5.9856,167.03,166.95,184.82]
[1752675484737,5.9852,167.04,166.96,8.73490347]
[1752675484942,133.66783784,167.07,166.98,8.73490347]
[1752675485332,133.66783784,167.07,166.98,13.73559058]
[1752675485533,133.66783784,167.07,167.03,5.9852]
[1752675485935,133.66783784,167.07,166.98,5.00068711]
[1752675486239,5.9846,167.06,167.01,5.9859]
[1752675486430,5.9846,167.06,166.99,184.76]
[1752675486629,139.65193784,167.07,167.02,5.9858]
[1752675487127,139.65193784,167.07,166.99,193.49490347]
[1752675487329,133.66783784,167.07,166.99,193.49490347]
[1752675487739,133.66783784,167.07,167.03,5.9852]
[1752675488533,8.73490347,167.12,167.01,8.73490347]
[1752675488939,5.9831,167.1,167.05,5.9845]
[1752675489541,8.73490347,167.11,167.01,8.73490347]
[1752675489933,14.71750347,167.11,167.03,8.73490347]
[1752675490132,184.72,167.14,167.03,8.73490347]
[1752675490338,8.73490347,167.13,167.03,8.73490347]
[1752675490835,5.9826,167.11,167.06,5.9841]
[1752675491033,8.73490347,167.13,167.03,8.73490347]
[1752675491233,184.72,167.14,167.05,8.68774434]
[1752675491234,5.9817,167.14,167.05,8.68774434]
[1752675491434,8.68774434,167.16,167.05,8.68774434]
[1752675491836,5.9823,167.12,167.07,5.9838]
[1752675492037,8.68774434,167.14,167.05,8.68774434]
[1752675492442,5.9821,167.13,167.08,5.9834]
[1752675493945,5.9816,167.14,167.09,5.9831]
[1752675494242,8.68786876,167.15,167.09,5.9831]
[1752675494445,8.68786876,167.15,167.08,5.9836]
[1752675494942,5.9822,167.13,167.08,5.9836]
[1752675495239,358.0,167.17,167.06,5.21295647]
[1752675495434,5.21295647,167.2,167.08,5.21295647]
[1752675495637,5.21295647,167.17,167.08,5.21295647]
[1752675495844,11.19355647,167.17,167.12,5.9819]
[1752675496144,5.21295647,167.17,167.12,5.9819]
[1752675496344,5.21295647,167.17,167.13,5.9816]
[1752675496648,11.19355647,167.17,167.1,5.21295647]
[1752675496842,5.21295647,167.17,167.1,5.21295647]
[1752675497043,5.9809,167.16,167.09,8.6840887]
[1752675497645,8.6840887,167.17,167.11,5.9823]
[1752675498246,8.6840887,167.18,167.12,5.9822]
[1752675498448,8.6840887,167.18,167.09,8.6840887]
[1752675498744,131.9548247,167.22,167.11,8.6840887]
[1752675498950,8.6840887,167.21,167.11,8.6840887]
[1752675499151,5.9796,167.2,167.11,8.6840887]
[1752675499450,140.6389134,167.22,167.11,8.6840887]
[1752675499648,131.9548247,167.22,167.11,8.6840887]
[1752675499849,5.9795,167.2,167.15,5.9809]
[1752675500051,131.9548247,167.22,167.11,8.6840887]
[1752675500351,5.9794,167.2,167.11,8.6840887]
[1752675500547,131.9548247,167.22,167.11,8.6840887]
[1752675501046,5.9796,167.2,167.14,5.9814]
[1752675501444,5.9791,167.21,167.11,8.6840887]
[1752675501643,131.9548247,167.22,167.13,8.6840887]
[1752675502243,516.94,167.3,167.15,8.6840887]
[1752675502449,14.6615887,167.26,167.15,8.6840887]
[1752675502746,8.6840887,167.26,167.15,8.6840887]
[1752675504151,5.9782,167.24,167.1,8.6840887]
[1752675504345,5.9782,167.24,167.15,8.6840887]
[1752675504850,5.9778,167.25,167.15,8.6840887]
[1752675505147,8.6840887,167.27,167.17,8.6840887]
[1752675505350,5.977,167.27,167.23,5.9782]
[1752675505652,5.977,167.27,167.19,8.6840887]
[1752675506147,5.9775,167.26,167.21,5.9788]
[1752675506353,8.6840887,167.27,167.12,11.9643]
[1752675506550,8.6840887,167.27,167.17,8.6840887]
[1752675506754,8.6840887,167.28,167.17,8.6840887]
[1752675507151,5.9773,167.26,167.21,5.9788]
[1752675507352,8.6840887,167.26,167.17,8.6840887]
[1752675507553,1.04051428,167.33,167.17,8.6840887]
[1752675507753,5.9776,167.25,167.2,5.9793]
[1752675508156,8.6840887,167.27,167.17,8.6840887]
[1752675508351,8.6840887,167.27,167.2,5.9793]
[1752675508552,8.6840887,167.27,167.16,8.6840887]
[1752675508747,8.6840887,167.23,167.07,528.9076]
[1752675509051,8.6840887,167.23,167.13,8.6840887]
[1752675509551,8.6840887,167.23,167.08,184.2]
[1752675509749,8.6840887,167.23,167.13,8.6840887]
[1752675510557,8.6840887,167.23,167.07,528.9076]
[1752675510853,8.6840887,167.19,167.08,8.6840887]
[1752675511054,14.6637887,167.19,167.13,5.9816]
[1752675511451,8.6840887,167.19,167.13,5.9816]
[1752675511651,5.9801,167.18,167.13,5.9816]
[1752675511854,8.6840887,167.21,167.1,8.6840887]
[1752675512154,8.6840887,167.22,167.12,8.6840887]
[1752675512551,8.6840887,167.24,167.14,8.6840887]
[1752675513057,5.9787,167.22,167.17,5.9802]
[1752675513655,8.6840887,167.24,167.16,5.9807]
[1752675513856,8.6840887,167.22,167.16,5.9807]
[1752675514054,8.6840887,167.22,167.13,8.6840887]
[1752675514449,5.9794,167.2,167.06,528.5684]
[1752675514655,8.6840887,167.2,167.09,8.6840887]
[1752675515255,5.9803,167.18,167.14,5.9813]
[1752675516052,8.6840887,167.2,167.09,8.6840887]
[1752675516653,5.9798,167.19,167.14,5.9812]
[1752675517053,8.6840887,167.2,167.07,184.08]
[1752675517054,5.21016569,167.18,167.1,5.21016569]
[1752675517254,5.21016569,167.18,167.14,5.9814]
[1752675517555,5.21016569,167.18,167.11,5.21016569]
[1752675518355,5.9797,167.19,167.14,5.9813]
[1752675518556,5.21016569,167.2,167.11,5.21016569]
[1752675518862,5.21016569,167.22,167.13,5.21016569]
[1752675519054,0.03775187,167.18,167.15,0.04147116]
[1752675519255,0.03775187,167.18,167.13,5.21016569]
[1752675519550,0.03775187,167.18,167.16,5.9805]
[1752675519752,0.03775187,167.18,167.15,5.25485585]
[1752675520357,5.21016569,167.24,167.15,5.25485585]
[1752675520857,5.21016569,167.24,167.19,5.9796]
[1752675521755,11.18816569,167.24,167.2,0.04191633]
[1752675522152,358.0,167.3,167.2,0.04191633]
[1752675522358,5.21016569,167.25,167.2,6.02101633]
[1752675522854,5.21016569,167.25,167.2,5.9791]
[1752675523054,11.18786569,167.25,167.21,0.04159578]
[1752675523753,358.0,167.31,167.21,0.04159578]
[1752675524061,5.21016569,167.27,167.21,0.04159578]
[1752675524355,5.21016569,167.27,167.23,5.9781]
[1752675524857,5.21016569,167.27,167.23,6.01969477]
[1752675525250,5.21016569,167.27,167.24,5.9779]
[1752675525558,5.21016569,167.27,167.23,0.04159477]
[1752675525853,5.21016569,167.27,167.23,6.01959477]
[1752675526051,5.21016569,167.27,167.23,0.04159477]
[1752675526455,5.21016569,167.27,167.24,5.9778]
[1752675527158,5.21016569,167.29,167.25,5.9775]
[1752675527358,11.18656569,167.29,167.23,0.04159477]
[1752675527758,11.18656569,167.29,167.23,6.01969477]
[1752675527957,5.21016569,167.29,167.23,0.04159477]
[1752675528659,5.21016569,167.25,167.23,0.04159477]
[1752675529962,5.21016569,167.25,167.23,0.00016027]
[1752675531660,5.9779,167.24,167.23,0.00016027]
[1752675531864,5.21016569,167.25,167.23,0.00016027]
[1752675532163,11.18796569,167.25,167.23,0.00016027]
[1752675533069,5.9779,167.24,167.23,0.00016027]
[1752675533268,5.21016569,167.25,167.23,0.00016027]
[1752675533769,5.9779,167.24,167.23,0.00016027]
[1752675536676,11.18806569,167.24,167.23,0.00016027]
[1752675537275,5.21016569,167.24,167.23,0.00016027]
[1752675538868,11.18806569,167.24,167.23,0.00016027]
[1752675539282,5.9778,167.25,167.23,0.00016027]
[1752675539479,5.21016569,167.24,167.23,0.00016027]
[1752675540774,11.18806569,167.24,167.23,0.00016027]
[1752675540976,5.21016569,167.24,167.23,0.00016027]
[1752675541779,11.18806569,167.24,167.23,0.00016027]
[1752675541981,5.21016569,167.24,167.12,188.60090766]
[1752675542178,5.20920381,167.2,167.17,5.9804]
[1752675542775,5.20920381,167.2,167.16,5.9806]
[1752675542977,5.20920381,167.2,167.12,183.62]
[1752675544681,5.20920381,167.2,167.17,5.9802]
[1752675546286,2.36860544,167.23,167.17,5.9802]
[1752675546581,5.20920381,167.21,167.17,5.9802]
[1752675546884,5.20920381,167.21,167.16,5.9807]
[1752675547381,5.20920381,167.21,167.17,5.9802]
[1752675547782,5.20920381,167.21,167.13,188.72920381]
[1752675548585,5.20920381,167.21,167.18,5.9799]
[1752675548783,5.20920381,167.21,167.13,188.72920381]
[1752675549384,5.20920381,167.21,167.18,5.98]
[1752675550282,5.20920381,167.23,167.19,5.9796]
[1752675550678,5.20920381,167.23,167.19,5.9795]
[1752675551178,5.20920381,167.23,167.13,183.52]
[1752675551179,5.20920381,167.21,167.1,521.44090766]
[1752675551488,5.20920381,167.21,167.11,188.64920381]
[1752675551982,5.20920381,167.21,167.13,5.20920381]
[1752675552185,5.20920381,167.21,167.14,5.97875491]
[1752675552386,5.20920381,167.21,167.16,5.9806]
[1752675552686,5.20920381,167.21,167.17,5.97875491]
[1752675552989,5.20920381,167.21,167.18,5.97875491]
[1752675553280,5.20920381,167.21,167.19,5.97875491]
[1752675553485,5.20920381,167.21,167.2,5.97875491]
[1752675554281,5.20920381,167.21,167.13,5.20920381]
[1752675554476,5.20920381,167.21,167.14,5.97939727]
[1752675554687,5.20920381,167.21,167.15,5.97939727]
[1752675554892,5.20920381,167.21,167.18,5.9798]
[1752675555387,5.20920381,167.21,167.19,5.97940876]
[1752675555585,5.20920381,167.21,167.2,5.97940876]
[1752675557287,11.18820381,167.21,167.2,5.97940876]
[1752675557487,11.18845473,167.21,167.2,5.97993099]
[1752675558984,5.9802,167.18,167.11,183.44]
[1752675559189,5.20945473,167.16,167.11,183.44]
[1752675559593,5.20945473,167.16,167.14,5.9813]
[1752675561589,5.20945473,167.16,167.15,5.9811]
[1752675562085,5.20945473,167.16,167.13,0.04536485]
[1752675562289,5.20945473,167.16,167.14,5.9815]
[1752675562892,5.20945473,167.16,167.13,6.02706485]
[1752675563391,5.20945473,167.16,167.14,5.9815]
[1752675563895,0.03957581,167.17,167.13,0.04536485]
[1752675564089,5.20945473,167.14,167.13,0.04536485]
[1752675564984,5.20945473,167.16,167.13,0.04536485]
[1752675566089,11.19045473,167.16,167.13,0.04536485]
[1752675567592,5.9812,167.15,167.13,0.04536485]
[1752675569492,5.20945473,167.14,167.13,0.04536485]
[1752675571391,5.20945473,167.16,167.13,0.04536485]
[1752675571997,5.20945473,167.16,167.13,6.02716485]
[1752675574599,0.03957581,167.17,167.13,0.04536485]
[1752675574798,5.24903054,167.17,167.13,0.04536485]
[1752675575202,0.03957581,167.17,167.13,0.04536485]
[1752675575389,5.20945473,167.16,167.13,0.04536485]
[1752675575593,11.19025473,167.16,167.13,0.04536485]
[1752675577590,5.20945473,167.16,167.13,0.04536485]
[1752675577799,0.03957581,167.17,167.13,0.04536485]
[1752675577995,0.03957581,167.17,167.14,5.9813]
[1752675578597,0.03957581,167.17,167.13,0.04536485]
[1752675580304,0.03957581,167.17,167.16,5.9808]
[1752675581699,0.03957581,167.17,167.15,5.9811]
[1752675581898,0.03957581,167.17,167.13,0.04536485]
[1752675582406,11.19055473,167.16,167.13,0.04536485]
[1752675582611,5.20945473,167.16,167.13,0.04536485]
[1752675583006,5.9812,167.15,167.13,0.04536485]
[1752675583206,5.20945473,167.16,167.13,0.04536485]
[1752675583809,5.9814,167.15,167.13,0.04536485]
[1752675584011,5.20945473,167.14,167.13,0.04536485]
[1752675584414,11.19095473,167.14,167.13,0.04536485]
[1752675589414,5.20945473,167.14,167.13,0.04536485]
[1752675590618,11.19105473,167.14,167.13,0.04536485]
[1752675592915,11.19105473,167.14,167.13,5.91211812]
[1752675598427,11.19105473,167.14,167.13,5.91565352]
[1752675601219,6.69363685,167.17,167.13,5.91565352]
[1752675601425,0.03957581,167.17,167.14,5.87028867]
[1752675601621,0.03957581,167.17,167.15,5.87028867]
[1752675601824,0.03957581,167.17,167.16,5.87028867]
[1752675602627,5.24903054,167.17,167.16,5.87028867]
[1752675603029,11.22953054,167.17,167.16,5.87028867]
[1752675605022,5.9816,167.14,167.13,0.04536485]
[1752675605226,11.19105473,167.14,167.13,6.20593963]
[1752675606032,5.20945473,167.14,167.13,6.20593963]
[1752675606228,5.9814,167.15,167.13,0.04536485]
[1752675606632,11.19045473,167.16,167.13,6.02716485]
[1752675606832,5.20945473,167.16,167.13,6.02716485]
[1752675607232,5.9814,167.15,167.13,0.04536485]
[1752675607434,5.20945473,167.16,167.13,0.04536485]
[1752675608333,5.9815,167.15,167.13,0.04536485]
[1752675608534,5.20945473,167.16,167.13,0.04536485]
[1752675608734,6.69363685,167.17,167.13,0.04536485]
[1752675609037,5.9811,167.16,167.13,0.04536485]
[1752675609232,5.9811,167.16,167.13,6.02706485]
[1752675609536,5.20945473,167.16,167.13,0.04536485]
[1752675610034,5.9816,167.15,167.13,0.04536485]
[1752675610432,5.9816,167.14,167.13,0.04536485]
[1752675610738,11.19105473,167.14,167.13,0.04536485]
[1752675611130,5.20945473,167.14,167.13,0.04536485]
[1752675611838,11.19105473,167.14,167.13,0.04536485]
[1752675612032,5.20945473,167.14,167.13,0.04536485]
[1752675612336,5.9815,167.15,167.13,0.04536485]
[1752675612637,5.20945473,167.16,167.13,0.04536485]
[1752675613035,11.19065473,167.16,167.13,0.04536485]
[1752675613237,5.20945473,167.16,167.13,0.04536485]
[1752675615345,11.19105473,167.14,167.13,0.04536485]
[1752675617144,11.19105473,167.14,167.13,6.08952185]
[1752675620851,0.03957581,167.17,167.13,6.08952185]
[1752675621049,0.03957581,167.17,167.14,6.044157]
[1752675621349,0.03957581,167.17,167.15,6.0432851]
[1752675621650,0.03957581,167.17,167.16,6.0432851]
[1752675623551,0.03957581,167.17,167.16,6.03123171]
[1752675624150,6.02007581,167.17,167.16,6.03123171]
[1752675624948,0.03957581,167.17,167.16,6.03123171]
[1752675625143,0.03957581,167.17,167.16,12.01213171]
[1752675625651,0.03957581,167.17,167.16,6.03123171]
[1752675626243,0.03957581,167.17,167.16,12.01213171]
[1752675626648,11.18845473,167.22,167.18,5.9801]
[1752675626856,5.20945473,167.22,167.19,6.03123171]
[1752675627050,5.20945473,167.22,167.2,6.03123171]
[1752675627251,5.9784,167.23,167.21,6.03123171]
[1752675627451,5.9784,167.23,167.22,6.03123171]
[1752675629053,5.9784,167.23,167.22,3.171e-05]
[1752675629254,15.19054629,167.23,167.11,4.58917576]
[1752675629454,5.20945473,167.18,167.07,9.57008342]
[1752675629654,11.18965473,167.18,167.1,5.20945473]
[1752675630557,11.18965473,167.18,167.13,5.9817]
[1752675630956,5.9806,167.17,167.13,5.9817]
[1752675631157,5.9806,167.17,167.12,5.9822]
[1752675632958,5.9806,167.17,167.13,5.9819]
[1752675633258,5.9811,167.16,167.11,4.59070461]
[1752675633760,5.20945473,167.18,167.09,4.59070461]
[1752675633960,5.9815,167.15,167.09,4.59070461]
[1752675634256,5.20945473,167.18,167.09,4.59070461]
[1752675634453,5.9827,167.11,167.07,4.59070461]
[1752675634659,5.20945473,167.14,167.08,5.9837]
[1752675635157,5.9822,167.13,167.08,5.9837]
[1752675635349,5.20945473,167.14,167.09,5.9834]
[1752675635549,5.20945473,167.14,167.07,4.59070461]
[1752675635756,5.20945473,167.12,167.06,90.89228424]
[1752675635959,5.20945473,167.12,167.02,516.66]
[1752675635960,5.20945473,167.1,167.02,516.66]
[1752675636358,5.9835,167.09,167.03,4.59215379]
[1752675636559,5.9835,167.09,167.05,5.9846]
[1752675636760,5.20945473,167.08,167.03,4.59215379]
[1752675637162,5.20945473,167.08,167.03,5.9855]
[1752675637359,5.20945473,167.08,167.02,516.66]
[1752675637760,192.00619058,167.18,167.02,516.66]
[1752675637961,5.9836,167.09,167.02,516.66]
[1752675638162,5.9836,167.09,167.04,5.9849]
[1752675638762,5.20945473,167.1,167.04,5.9849]
[1752675639062,5.20945473,167.1,167.05,5.9848]
[1752675639258,5.9836,167.09,167.05,5.9848]
[1752675640866,11.19335473,167.08,167.04,5.9852]
[1752675641263,11.19335473,167.08,167.05,5.9848]
[1752675641859,5.20945473,167.08,167.05,5.9848]
[1752675642260,5.20945473,167.08,167.02,516.66]
[1752675642460,5.9843,167.07,167.02,516.66]
[1752675642863,5.20945473,167.08,167.03,5.9853]
[1752675643160,5.9843,167.07,167.03,5.9853]
[1752675643368,5.9843,167.07,167.04,5.9852]
[1752675643665,11.19335473,167.08,167.04,5.9852]
[1752675643860,11.19335473,167.08,167.04,5.985]
[1752675644462,11.19335473,167.08,167.05,5.9848]
[1752675645069,5.20945473,167.08,167.05,5.9846]
[1752675645665,11.19325473,167.08,167.04,5.9851]
[1752675646970,11.19325473,167.08,167.05,5.9848]
[1752675647473,11.19325473,167.08,167.02,516.66]
[1752675647975,11.19325473,167.08,167.04,5.985]
[1752675648273,11.19285473,167.1,167.02,521.86945473]
[1752675648772,11.19285473,167.1,167.05,5.9845]
[1752675649773,5.9834,167.09,167.05,5.9845]
[1752675651074,11.19265473,167.1,167.06,5.9844]
[1752675656278,5.9835,167.09,167.05,5.9847]
[1752675657280,5.20945473,167.11,167.04,181.76]
[1752675657674,11.19245473,167.11,167.06,5.9844]
[1752675657875,5.983,167.11,167.06,5.9844]
[1752675658279,5.9831,167.1,167.06,5.9844]
[1752675658577,5.9831,167.1,167.07,5.9841]
[1752675658978,5.9828,167.11,167.07,5.9841]
[1752675659478,5.9828,167.11,167.04,181.76]
[1752675659677,5.9828,167.11,167.04,186.96945473]
[1752675660380,5.9831,167.1,167.04,186.96945473]
[1752675660878,5.9831,167.1,167.06,5.9842]
[1752675661878,5.20945473,167.12,167.04,186.96945473]
[1752675662081,5.20945473,167.1,167.04,181.64]
[1752675662279,5.9836,167.09,167.05,5.9846]
[1752675663182,5.9839,167.08,167.04,181.64]
[1752675663578,5.20945473,167.1,167.04,181.64]
[1752675663880,5.9837,167.09,167.05,5.9846]
[1752675664381,5.9837,167.09,167.06,5.9845]
[1752675664781,5.20945473,167.1,167.04,181.64]
[1752675665178,5.20945473,167.1,167.06,5.9843]
[1752675665378,11.19265473,167.1,167.06,5.9843]
[1752675665985,11.19265473,167.1,167.07,5.984]
[1752675666175,11.19265473,167.1,167.04,181.64]
[1752675666376,5.9835,167.09,167.04,181.64]
[1752675666572,5.20945473,167.1,167.06,5.9841]
[1752675666778,482.0,167.17,167.04,181.64]
[1752675666979,5.9828,167.11,167.04,186.84945473]
[1752675667379,5.9828,167.11,167.07,5.9839]
[1752675667781,5.20945473,167.14,167.06,5.20945473]
[1752675668288,11.19115473,167.14,167.06,5.20945473]
[1752675668485,11.19115473,167.14,167.11,5.9827]
[1752675669085,11.19115473,167.14,167.08,181.54]
[1752675669285,11.19115473,167.14,167.1,5.9828]
[1752675669488,5.982,167.13,167.08,181.54]
[1752675669787,5.20945473,167.14,167.08,181.54]
[1752675670086,11.19125473,167.14,167.1,5.9828]
[1752675670287,5.20945473,167.14,167.08,181.54]
[1752675670589,5.20945473,167.14,167.1,5.983]
[1752675671291,5.20945473,167.14,167.11,5.9826]
[1752675671989,11.19115473,167.14,167.1,5.9829]
[1752675672189,5.20945473,167.14,167.02,516.66]
[1752675672490,5.20945473,167.12,167.03,186.66945473]
[1752675672881,5.20945473,167.1,167.03,181.46]
[1752675674190,11.19265473,167.1,167.06,5.9842]
[1752675675193,5.20945473,167.12,167.03,186.66945473]
[1752675675789,5.20945473,167.12,167.05,5.20945473]
[1752675676387,358.0,167.16,167.06,6.06524087]
[1752675676591,5.20945473,167.13,167.05,5.20945473]
[1752675676793,5.20945473,167.11,167.06,6.06473384]
[1752675676989,11.19245473,167.11,167.07,6.06473384]
[1752675677186,11.19245473,167.11,167.08,6.06473384]
[1752675677389,5.20945473,167.11,167.09,6.06473384]
[1752675677690,11.19215473,167.11,167.1,6.06473384]
[1752675679193,5.9832,167.1,167.07,5.9841]
[1752675679386,5.9832,167.1,167.08,6.07968165]
[1752675679590,5.9832,167.1,167.09,6.07968165]
[1752675681590,5.9842,167.07,166.96,16.97428928]
[1752675681791,5.20945473,167.09,167.0,5.20945473]
[1752675682184,11.19295473,167.09,167.01,4.60211561]
[1752675682388,11.19295473,167.09,167.06,5.9844]
[1752675683094,5.20945473,167.09,167.02,4.60211561]
[1752675683286,5.9832,167.1,167.01,4.60211561]
[1752675683488,5.9836,167.09,167.02,9.81157034]
[1752675683690,5.9836,167.09,167.03,4.60211561]
[1752675683897,11.19305473,167.09,167.05,5.9846]
[1752675684095,11.19305473,167.09,167.04,4.60211561]
[1752675684295,11.19305473,167.09,167.03,4.60211561]
[1752675684491,11.19305473,167.09,167.05,5.9847]
[1752675685096,5.9838,167.08,167.03,4.60211561]
[1752675685393,5.20945473,167.07,167.0,5.20945473]
[1752675685593,5.20945473,167.07,167.0,4.60211561]
[1752675686099,11.19375473,167.07,167.0,4.60211561]
[1752675686301,11.19375473,167.07,167.03,5.9854]
[1752675686593,5.9843,167.07,167.0,4.60211561]
[1752675687099,5.9843,167.07,167.0,5.20945473]
[1752675687701,5.9846,167.06,167.0,4.60211561]
[1752675687897,5.9846,167.06,166.98,5.20945473]
[1752675687898,5.20945473,167.08,167.02,5.9856]
[1752675688297,5.9847,167.06,167.02,5.9856]
[1752675688798,5.985,167.05,166.99,4.60211561]
[1752675688997,5.985,167.05,166.98,4.60211561]
[1752675689602,5.985,167.05,167.01,5.986]
[1752675690604,5.20945473,167.12,166.98,9.81157034]
[1752675690805,5.20945473,167.07,166.98,9.81157034]
[1752675691001,5.20945473,167.12,167.0,5.20945473]
[1752675691002,5.20945473,167.08,167.0,5.20945473]
[1752675691304,5.20945473,167.08,166.97,181.32]
[1752675691305,5.20945473,167.11,167.02,5.20945473]
[1752675691504,5.20945473,167.11,167.05,5.9845]
[1752675691704,5.9832,167.1,167.02,5.20945473]
[1752675692509,11.19215473,167.11,167.07,5.9841]
[1752675693006,5.983,167.1,167.06,5.9844]
[1752675693306,5.20945473,167.11,167.02,5.20945473]
[1752675693507,11.19285473,167.09,167.04,5.9851]
[1752675693707,11.19285473,167.09,167.02,5.20945473]
[1752675694007,11.19285473,167.09,167.01,4.59889782]
[1752675694208,5.9839,167.08,167.01,4.59889782]
[1752675694597,5.20945473,167.12,167.01,4.59889782]
[1752675694802,5.20945473,167.07,167.01,4.59889782]
[1752675695006,5.20945473,167.08,167.01,4.59889782]
[1752675695198,11.19345473,167.08,167.04,5.9851]
[1752675697208,5.20945473,167.08,167.03,5.9854]
[1752675698606,5.20945473,167.08,167.04,5.9852]
[1752675699409,5.9844,167.07,167.04,5.9852]
[1752675700813,5.9844,167.07,167.01,4.60214276]
[1752675701308,5.9844,167.07,167.04,5.9851]
[1752675702405,11.19335473,167.08,167.05,5.9848]
[1752675702607,5.20945473,167.1,167.01,9.81364676]
[1752675702800,11.19275473,167.1,167.07,5.9841]
[1752675703711,5.9828,167.11,167.08,5.9837]
[1752675703907,5.20945473,167.12,167.03,5.20945473]
[1752675704210,5.9836,167.09,167.03,5.20945473]
[1752675705310,5.9836,167.09,167.05,5.9846]
[1752675705513,5.20945473,167.1,167.01,5.20945473]
[1752675705812,10.0275841,167.13,167.01,4.60274274]
[1752675705813,5.20945473,167.08,167.01,4.60274274]
[1752675706112,5.20945473,167.08,167.03,5.9853]
[1752675706312,11.19415473,167.06,167.0,4.60274274]
[1752675706510,5.20945473,167.06,167.02,5.9857]
[1752675706707,5.20945473,167.06,167.0,4.60274274]
[1752675706910,5.20945473,167.04,166.99,5.9869]
[1752675707212,5.9872,166.99,166.94,516.96]
[1752675707601,5.20945473,167.0,166.94,516.96]
[1752675707906,11.19605473,167.0,166.94,516.96]
[1752675708612,5.987,166.99,166.94,516.96]
[1752675709110,5.987,166.99,166.96,5.9878]
[1752675709411,5.20945473,166.98,166.87,5.20945473]
[1752675709607,5.20945473,166.96,166.88,180.9]
[1752675709814,5.20945473,166.96,166.91,5.9896]
[1752675710007,5.9886,166.95,166.88,180.9]
[1752675710209,5.20945473,166.94,166.89,5.9904]
[1752675710415,11.19835473,166.94,166.88,180.9]
[1752675710609,5.20945473,166.94,166.88,180.9]
[1752675710813,5.20945473,166.96,166.88,180.9]
[1752675711013,5.20945473,166.96,166.88,186.10945473]
[1752675711219,5.20945473,166.98,166.88,180.9]
[1752675711418,5.20945473,166.96,166.88,180.9]
[1752675711613,11.19785473,166.95,166.88,180.9]
[1752675711809,5.20945473,166.95,166.88,180.9]
[1752675714217,5.20945473,166.97,166.89,5.20945473]
[1752675714719,5.20945473,166.97,166.94,5.9886]
[1752675715117,5.20945473,166.97,166.89,5.20945473]
[1752675715320,5.20945473,166.95,166.92,5.9892]
[1752675716020,5.20945473,166.95,166.93,5.9891]
[1752675716218,5.20945473,166.95,166.88,180.9]
[1752675716617,5.20945473,166.95,166.93,5.9889]
[1752675716819,5.20945473,166.95,166.88,180.9]